Cogmind - Beta 9.3 @@@ ROGUE MODE // 2019.12.29 @ 21:51:15 Player: 3.14 Result: Destroyed by YI-UF0 with YI-UF0's Doublenader Performance ------------- Evolutions (0) 0 Regions Visited (4) 800 Robots Destroyed (23) 115 Value Destroyed (378) 378 Prototype IDs (0) 0 Alien Tech Used (0) 0 Bonus (0) 0 TOTAL SCORE: 1293 Bonus ------- None Cogmind --------- Core Integrity 0/250 Matter 300/300 Energy 100/100 System Corruption 8% Temperature Cool (0) Movement Core (50) Location -9/Mines Parts ------- > --- POWER (1) -------- (None) > --- PROPULSION (2) --- Aluminum Leg > --- UTILITY (2) ------ (None) > --- WEAPON (2) ------- Light Assault Rifle > --- INVENTORY (4) ---- Light Nuclear Core Large Storage Unit Large Storage Unit Beam Cannon Peak State ------------ > --- POWER ------------ Light Nuclear Core > --- PROPULSION ------- Light Treads Light Treads > --- UTILITY ---------- Small Storage Unit > --- WEAPON ----------- Particle Gun Assault Rifle > --- INVENTORY -------- Ion Engine Light Treads Medium Laser Beam Cannon Beam Cannon Beam Cannon [Rating: 9] Favorites ----------- Power Ion Engine Engine Ion Engine Power Core Light Nuclear Core Propulsion Light Treads Treads Light Treads Leg Aluminum Leg Utility Large Storage Unit Storage Large Storage Unit Weapon Assault Rifle Energy Gun Particle Gun Energy Cannon Beam Cannon Ballistic Gun Assault Rifle Impact Weapon Heavy Hammer Build | -11 -10 -10 -10 -9 ------- Run | Scr Mat Min Exi Min Slots Evolved . | . . . . . Power . | . . . . . Propulsion . | . . . . . Utility . | . . . . . Weapon . | . . . . . Parts Attached 20 | 6 2 2 2 8 Power 3 | 1 1 1 . . Engine 2 | 1 . 1 . . Core 1 | . 1 . . . Reactor . | . . . . . Propulsion 6 | 2 . . . 4 Treads 3 | 2 . . . 1 Leg 3 | . . . . 3 Wheel . | . . . . . Hover . | . . . . . Flight . | . . . . . Utility 3 | 1 . . 2 . Device . | . . . . . Storage 3 | 1 . . 2 . Processor . | . . . . . Hackware . | . . . . . Protection . | . . . . . Artifact . | . . . . . Weapon 8 | 2 1 1 . 4 Energy Gun 2 | 1 . 1 . . Energy Cannon 2 | . . . . 2 Ballistic Gun 3 | 1 1 . . 1 Ballistic Cannon . | . . . . . Launcher . | . . . . . Special Weapon . | . . . . . Impact Weapon 1 | . . . . 1 Slashing Weapon . | . . . . . Piercing Weapon . | . . . . . Special Melee Weapon . | . . . . . Unidentified Prototypes . | . . . . . Parts Lost 11 | . . 2 . 9 Power 2 | . . 1 . 1 Propulsion 4 | . . . . 4 Utility . | . . . . . Weapon 5 | . . 1 . 4 Highest Loss Streak 4 | . . 1 . 4 Average Slot Usage (%) 88 | . 85 84 95 87 Engine 12 | . 9 12 14 11 Treads 26 | . 28 28 28 23 Storage 19 | . 14 14 24 23 Energy Gun 11 | . 13 13 14 7 Energy Cannon 1 | . . . . 4 Ballistic Gun 13 | . 14 14 14 12 Naked Turns . | . . . . . Heaviest Build 42 | 11 13 14 42 42 Greatest Support 40 | 40 40 40 40 40 Greatest Overweight (x) 13 | . . . 1 13 Average Overweight (x) . | . . . . . Largest Inventory Capacity 16 | 6 6 6 16 16 Average Capacity 10 | 5 6 6 13 14 Most Carried 9 | 4 6 6 8 9 Average Carried 6 | 2 5 5 7 7 Final Capacity 16 | 6 6 6 16 4 Final Carried 8 | 4 6 6 8 4 Class Distribution -------------------- 100% | Mutant Dominant Class ---------------- Mutant | -10/Materials Mutant | -10/Mines Mutant | -10/Exiles Mutant | -9/Mines Resources | -11 -10 -10 -10 -9 ----------- Run | Scr Mat Min Exi Min Matter Collected 565 | 190 126 99 20 130 Remotely . | . . . . . Salvage Created 762 | . 318 353 . 91 Parts 39 | . 24 15 . . Haulers Intercepted 1 | . 1 . . . Recyclers Shooed 2 | . 2 . . . Parts Field Recycled . | . . . . . Retrieved Matter . | . . . . . Parts Self-Destructed . | . . . . . Prevented . | . . . . . Kills | -11 -10 -10 -10 -9 ------- Run | Scr Mat Min Exi Min Combat Hostiles Destroyed 16 | . 5 6 . 5 Guns 13 | . 5 6 . 2 Cannons 3 | . . . . 3 Classes Destroyed 7 | . 6 . . 1 Worker 3 | . 2 . . 1 Tunneler 1 | . 1 . . . Hauler 1 | . 1 . . . Recycler 2 | . 1 1 . . Swarmer 3 | . 3 . . . Grunt 8 | . 2 6 . . Assembled 5 | . . . . 5 Best Kill Streak 6 | . 6 4 . 2 Combat Bots Only 4 | . 2 4 . 2 Max Kills in Single Turn 3 | . 3 1 . 1 Gunslinging . | . . . . . Exploded . | . . . . . Melee . | . . . . . Uniques/NPCs Destroyed . | . . . . . Combat | -11 -10 -10 -10 -9 -------- Run | Scr Mat Min Exi Min Damage Taken 1382 | . 221 306 . 855 Core 257 | . 7 28 . 222 Absorbed by Shields . | . . . . . Core Remaining (%) 100 | 100 . . . . Volleys Fired 65 | . 21 19 . 25 Largest 2 | . 2 2 . 2 Hottest 85 | . 60 85 . 85 Shots Fired 119 | . 42 36 . 41 Gun 103 | . 42 36 . 25 Cannon 16 | . . . . 16 Launcher . | . . . . . Special . | . . . . . Kinetic 65 | . 21 23 . 21 Thermal 33 | . . 13 . 20 Explosive . | . . . . . Electromagnetic 21 | . 21 . . . Robot Hit Streak 10 | . 8 10 . 7 Robot Miss Streak 4 | . 4 3 . 3 Penetration Max . | . . . . . Secondary Targets 2 | . 1 . . 1 Max Gunslinging Chain 1 | . 1 . . 1 Shots Hit Robots 74 | . 25 24 . 25 Core Hits 43 | . 16 15 . 12 Critical Hits . | . . . . . Critical Kills . | . . . . . Critical Parts Destroyed . | . . . . . Melee Attacks . | . . . . . Impact . | . . . . . Slashing . | . . . . . Piercing . | . . . . . Sneak Attacks . | . . . . . Combat Hostiles . | . . . . . Follow-up Attacks . | . . . . . Damage Inflicted 1280 | . 506 323 . 451 Guns 961 | . 405 315 . 241 Cannons 209 | . . . . 209 Explosions 92 | . 92 . . . Melee . | . . . . . Ramming 18 | . 9 8 . 1 Kinetic 644 | . 235 196 . 213 Thermal 448 | . 92 119 . 237 Explosive . | . . . . . Electromagnetic 170 | . 170 . . . Impact . | . . . . . Slashing . | . . . . . Piercing . | . . . . . Highest Corruption 8 | . . . . 8 Average Corruption 8 | . . . . 8 Corruption Purged . | . . . . . Effects 3 | . . . . 3 Message Errors 1 | . . . . 1 Heat Flow Errors 1 | . . . . 1 Parts Rejected 1 | . . . . 1 Overload Shots . | . . . . . Overflow Damage 26 | . 18 . . 8 Projectiles 8 | . . . . 8 Explosions 18 | . 18 . . . Melee . | . . . . . Knockbacks . | . . . . . Impact . | . . . . . Kinetic . | . . . . . Secondary . | . . . . . Self-Inflicted Damage . | . . . . . Shots . | . . . . . Rammed 6 | . 2 3 . 1 Targets Rammed 6 | . 2 3 . 1 Kicked . | . . . . . Crushed . | . . . . . Highest Temperature 268 | . 72 197 . 268 Average Temperature 56 | . 34 80 . 49 Received Heat Transfer 396 | . 45 171 . 180 Siege Activations . | . . . . . Robots Corrupted . | . . . . . Combat Hostiles . | . . . . . Parts Fried . | . . . . . Impact Corruptions . | . . . . . Robots Melted . | . . . . . Combat Hostiles . | . . . . . Parts Melted . | . . . . . Heat Transferred 914 | . 100 296 . 518 Parts Sabotaged . | . . . . . Parts Stolen . | . . . . . Parts Stripped . | . . . . . Power Chain Reactions 1 | . 1 . . . Missiles Intercepted . | . . . . . Alert | -11 -10 -10 -10 -9 ------- Run | Scr Mat Min Exi Min Peak Influence 207 | . 147 207 . 15 Average Influence 54 | . 49 125 . . Maximum Alert Level 1 | . . 1 . . Low Security (%) 81 | 100 100 52 . 100 Level 1 18 | . . 47 . . Level 2 . | . . . . . Level 3 . | . . . . . Level 4 . | . . . . . Level 5 . | . . . . . High Security . | . . . . . Max Security . | . . . . . Squads Dispatched 2 | . 2 . . . Investigation . | . . . . . Extermination . | . . . . . Reinforcement 2 | . 2 . . . Assault . | . . . . . Garrison . | . . . . . Intercept . | . . . . . Construction Impeded . | . . . . . Haulers Reinforced . | . . . . . Stealth | -11 -10 -10 -10 -9 --------- Run | Scr Mat Min Exi Min Distress Signals 1 | . . . . 1 Communications Jammed . | . . . . . Distress Signals . | . . . . . Times Spotted 35 | . 9 6 . 20 Peak Tracking Total 7 | . 3 3 . 7 Tactical Retreats 5 | . . . . 5 Traps | -11 -10 -10 -10 -9 ------- Run | Scr Mat Min Exi Min Traps Triggered . | . . . . . Indirectly . | . . . . . Trap Hack Attempts . | . . . . . Triggered . | . . . . . Disarmed . | . . . . . Reprogrammed . | . . . . . Reused . | . . . . . Traps Extracted . | . . . . . Installed . | . . . . . Triggered . | . . . . . Machines | -11 -10 -10 -10 -9 ---------- Run | Scr Mat Min Exi Min Machines Disabled . | . . . . . Max in Single Turn . | . . . . . Machines Sabotaged . | . . . . . Garrisons Compromised . | . . . . . Overloaded Fab Kills . | . . . . . Fab Network Shutdowns . | . . . . . Hacking | -11 -10 -10 -10 -9 --------- Run | Scr Mat Min Exi Min Machines Accessed 1 | . . . 1 . Terminals . | . . . . . Fabricators . | . . . . . Repair Stations . | . . . . . Recycling Units . | . . . . . Scanalyzers . | . . . . . Garrison Access . | . . . . . Total Hacks 1 | . . . 1 . Successful 1 | . . . 1 . Failed . | . . . . . Catastrophic . | . . . . . Database Lockouts . | . . . . . Manual . | . . . . . Terminals . | . . . . . Fabricators . | . . . . . Repair Stations . | . . . . . Recycling Units . | . . . . . Scanalyzers . | . . . . . Garrison Access . | . . . . . Terminal Hacks 1 | . . . 1 . Record 1 | . . . 1 . Fabricator Hacks . | . . . . . Repair Station Hacks . | . . . . . Recycling Unit Hacks . | . . . . . Scanalyzer . | . . . . . Garrison Access Hacks . | . . . . . Unauthorized Hacks . | . . . . . Terminals . | . . . . . Fabricators . | . . . . . Repair Stations . | . . . . . Recycling Units . | . . . . . Scanalyzers . | . . . . . Garrison Access . | . . . . . Data Cores Recovered . | . . . . . Used . | . . . . . Hacking Detections . | . . . . . Full Trace Events . | . . . . . Feedback Events . | . . . . . Feedback Blocked . | . . . . . Robot Schematics Acquired . | . . . . . Robots Built . | . . . . . Matter . | . . . . . Time . | . . . . . Total Robot Build Rating . | . . . . . Part Schematics Acquired . | . . . . . Parts Built . | . . . . . Matter . | . . . . . Time . | . . . . . Total Part Build Rating . | . . . . . Parts Repaired . | . . . . . Time . | . . . . . Parts Recycled . | . . . . . Recycled Matter . | . . . . . Retrieved Matter . | . . . . . Retrieved Components . | . . . . . Parts Scanalyzed . | . . . . . Part Schematics Acquired . | . . . . . Parts Damaged . | . . . . . Bothacking | -11 -10 -10 -10 -9 ------------ Run | Scr Mat Min Exi Min Used RIF Installer . | . . . . . Robots Hacked . | . . . . . Non-combat . | . . . . . Combat . | . . . . . Robot Hacks Applied . | . . . . . Relay Couplers Released . | . . . . . Robots Rewired . | . . . . . Allies Hacked . | . . . . . Hacks Repelled . | . . . . . Allies | -11 -10 -10 -10 -9 -------- Run | Scr Mat Min Exi Min Total Allies 3 | . . 3 . . Largest Group 3 | . . 3 3 3 Highest-Rated Group 40 | . . 40 40 40 Highest-Rated Ally 16 | . . 16 16 16 Total Orders . | . . . . . Ally Attacks 6 | . . . . 6 Total Damage 61 | . . . . 61 Kills . | . . . . . Allies Corrupted . | . . . . . Allies Melted . | . . . . . Intel | -11 -10 -10 -10 -9 ------- Run | Scr Mat Min Exi Min Robot Analysis Total . | . . . . . Derelict Logs Recovered 3 | . . 1 . 2 Drone Launches . | . . . . . Drone Recoveries . | . . . . . Exploration | -11 -10 -10 -10 -9 ------------- Run | Scr Mat Min Exi Min Turns Passed 1961 | 80 208 590 426 657 Spaces Moved 1136 | 44 83 321 243 445 Core 181 | 2 . . . 179 Treads 955 | 42 83 321 243 266 Legs . | . . . . . Wheels . | . . . . . Hover . | . . . . . Flight . | . . . . . Fastest Speed 50 | 50 160 160 160 50 Average Speed 150 | 155 160 160 173 129 Slowest Speed 700 | 160 160 160 180 700 Overloaded Moves . | . . . . . Propulsion Burnouts . | . . . . . Robots Hopped . | . . . . . Cave-ins Triggered . | . . . . . Exploration Rate (%) 45 | 3 19 74 60 73 Regions Visited 4 Branch Regions 3 Pre-discovered Areas 2 | . . 1 1 . Known Exits Taken . | . . . . . Unknown Exits Taken 4 | 1 1 1 1 . Scrap Searched 1 | . . . . 1 Spaces Dug . | . . . . . Terrain Destroyed 3 | . 3 . . . Melee . | . . . . . Projectile . | . . . . . AOE 3 | . 3 . . . Actions | -11 -10 -10 -10 -9 --------- Run | Scr Mat Min Exi Min Total 1262 | 53 117 360 247 485 Wait 16 | . . 15 . 1 Move 1132 | 43 82 320 242 445 Hop . | . . . . . Pick Up 14 | 4 5 1 2 2 Fast Attach 14 | 6 2 1 1 4 Attach 5 | . . 1 . 4 Detach . | . . . . . Swap 1 | . . . 1 . Drop 9 | . 5 . 1 3 Fire 65 | . 21 19 . 25 Melee . | . . . . . Ram 1 | . . . . 1 Kick . | . . . . . Crush 5 | . 2 3 . . Escape Stasis . | . . . . . Rewire . | . . . . . Trap . | . . . . . Miscellaneous . | . . . . . Route ------- -11/Scrapyard -10/Materials -10/Mines (discovered 3 exits: [*Mat x2] / *Exi) -10/Exiles (discovered 2 exits: [*Min x2]) -9/Mines History --------- Turn | Location | Event 6 | -11/Scrapyard | Discovered new exit (range 15) 81 | -11/Scrapyard | Entered Materials 135 | -10/Materials | Discovered new exit (range 8) 289 | -10/Materials | Entered Mines 315 | -10/Mines | Build established: Mutant 432 | -10/Mines | Discovered new exit (range 13) 503 | -10/Mines | Discovered new exit (range 12) 672 | -10/Mines | Assisted by bots powering up and referring to "LRC-V3" 676 | -10/Mines | Learned location of Mines (-9) 868 | -10/Mines | Deemed a non-threat by the Exiles lab entrance 868 | -10/Mines | Discovered new exit (range 5) 879 | -10/Mines | Entered Exiles 879 | -10/Exiles | Accompanied by 3 allies 905 | -10/Exiles | Discovered new exit (range 15) 923 | -10/Exiles | Met 8R-AWN 947 | -10/Exiles | Met EX-HEX 1034 | -10/Exiles | Met EX-DEC 1165 | -10/Exiles | Learned location of Zion (-6) 1205 | -10/Exiles | Met EX-BIN 1289 | -10/Exiles | Discovered new exit (range 10) 1305 | -10/Exiles | Entered Mines 1305 | -9/Mines | Accompanied by 3 allies 1416 | -9/Mines | Learned 2 Materials zone layouts 1502 | -9/Mines | Assembled infested the area 1507 | -9/Mines | Assisted by a Guerilla fighting off Assembled 1791 | -9/Mines | Learned location of 2 exits from Materials 1861 | -9/Mines | Lost 4 parts (2n2w) 1870 | -9/Mines | Core integrity fell below 50% 1947 | -9/Mines | Core integrity fell below 20% 1962 | -9/Mines | Destroyed by YI-UF0 with YI-UF0's Doublenader Last Messages --------------- 01868_ System corrupted: Heat flow error (+293). 01872_ U-05 Engineer lays Concrete. 01886_ K-01 Serf collects debris. 01890_ Dropped Hvy. Hammer. 01890_ Acquired Lgt. Assault Rifle. 01897_ Lgt. Treads destroyed. 01898_ Slammed into as-19933. 01915_ Acquired Aluminum Leg. 01917_ Acquired 10 matter. 01919_ Acquired Aluminum Leg. 01924_ Acquired 10 matter. 01928_ System corrupted: Aluminum Leg rejected. 01928_ Acquired Aluminum Leg. 01930_ as-27569 suffers critical hit. 01930_ Acquired 10 matter. 01942_ U-05 Engineer builds a Wall. 01950_ Aluminum Leg destroyed. 01954_ GBA GY6PQZ 3NEWNWAWNE SP9#L5UCBEEV9ECQK 01960_ YI-UF0: "BADABOOM!" 01960_ as-65815 destroyed. Map ----- +----------------------------------------------------+ | | | | | | | | | | | | | | | | | | | | | | | | | | | | | | | | | | | ?????????????????????????????????????????????????? | | ??????????????????????????######????####?????????? | | ????????????###??#???????## # ###### ####???????? | | ???????????? # #?#??## ###?????? | | ??????????? ! # ## # # # ####??? | | ??????????? =%! # # #??? | | ??????????! * g ! ##?? | | ?????????? % = a a!! ! ##? | | ?????????? @ % a%%! [ #? | | ???????????# # ###! # ## | | ?????????????# # #### # #### # # | | ?????????????## #?# ##? ## # ## ## # | | ??????????????????###########?###?# ### # | | ??????????????????????????????????###### # | | ???????????????????????????????????????# # # | | ???????????????????????????????????????# ######## | | ???????????????????????????????????????# #??????## | | ???????????????????????????????????????# #???????# | | ???????????????????????????????????????# #?????### | | ??????????????????????????????????###### #?????# | | ??????????????????????????????????# #??##### | | ??????????????????????????????????# ######??#%## | | ??????????????????????????????????# #??????#### | | ??????????????????????????????????# #???#### ! % | | ??????????????????????????????????# #??## %% ## | | ????????????????????????????????### #### =%!%| # | | ?????????????????????????????#### %|## %# | | ?????????????????????????????# ##### = ### %* | | ?????????????????????????????# ##%#???## !##?####= | | ???????????????????????????### ##%#????#=##?????#% | | ??????????????????????????## !#!######*#??????#? | | ??????????????????????????# !!** %!=! !#???????? | | ?????????????????????????## =%/!%%% %!!#??????#? | +----------------------------------------------------+ Best States ------------- Heat Dissipation 25 Energy Generation 14 Energy Capacity 250 Matter Stores 300 Matter Capacity 300 Sight Range 16 Terrain Scan Density 10 Evasion (%) 50 Recoil Reduction 2 Item Schematics ----------------- None Robot Schematics ------------------ None Fabricated ------------ Nothing Alien Tech Used ----------------- None Achievements -------------- None Challenges ------------ None Game ------ Seed ArchitectSuperchargedBeam Manual? 0 Play Time 00:11:29 Cumulative 418.7 hours Start 2019.12.29 @ 21:43:30 End 2019.12.29 @ 21:51:15 Sessions 1 Manual Loads 0 Difficulty Rogue Special Mode None Game No. 736 Rogue 736 Adventurer 0 Explorer 0 Win Type - Total 30 Types 23/0/3/3/1/0/0 Lore% 93 Gallery% 91 Achievement% 80 Wizard Run 0 Options --------- ASCII 1 Keyboard 0 Movement Numpad Keybinds 0 Fullscreen 0 Font 14/SmallcapsGlow Map View 76x50 Tactical HUD 1 Map Filters NONE Filters NONE Steam 1 RUN: 40907f35-648f-45f6-9533-1f9c6e54a986